[Event "Late-Titled-Tuesday-Blitz-January-30-2024"]
[Site "Chess.com"]
[Date "2024.01.30"]
[Round "4"]
[White "LevonAronian"]
[Black "Alexei_Gubajdullin"]
[Result "1-0"]
[WhiteElo "3094"]
[BlackElo "2618"]
[TimeControl "180+1"]
[EndTime "14:37:14 PST"]
[Termination "LevonAronian won by resignation"]

1. e4 {[%clk 0:03:00.9]} 1... e5 {[%clk 0:02:59.8]} 2. Bc4 {[%clk 0:03:00]} 2...
Nf6 {[%clk 0:02:59]} 3. d3 {[%clk 0:03:00.2]} 3... c6 {[%clk 0:02:58.8]} 4. Bb3
{[%clk 0:03:00.4]} 4... d5 {[%clk 0:02:58.6]} 5. exd5 {[%clk 0:03:00.6]} 5...
cxd5 {[%clk 0:02:58.7]} 6. Ne2 {[%clk 0:03:00.7]} 6... Bb4+ {[%clk 0:02:57.7]}
7. c3 {[%clk 0:02:56.9]} 7... Bd6 {[%clk 0:02:57.3]} 8. Bg5 {[%clk 0:02:55.4]}
8... Be6 {[%clk 0:02:56.4]} 9. d4 {[%clk 0:02:55.2]} 9... h6 {[%clk 0:02:43]}
10. Bh4 {[%clk 0:02:53.2]} 10... e4 {[%clk 0:02:40.5]} 11. Nd2 {[%clk
0:02:53.1]} 11... Nc6 {[%clk 0:02:28.5]} 12. Nf1 {[%clk 0:02:51.5]} 12... g5
{[%clk 0:02:10.2]} 13. Bg3 {[%clk 0:02:50.8]} 13... Ne7 {[%clk 0:02:04.3]} 14.
Ne3 {[%clk 0:02:49.7]} 14... Kf8 {[%clk 0:01:58.1]} 15. O-O {[%clk 0:02:45.3]}
15... h5 {[%clk 0:01:50.3]} 16. Be5 {[%clk 0:02:23.6]} 16... Bxe5 {[%clk
0:01:44.4]} 17. dxe5 {[%clk 0:02:23.5]} 17... Ng4 {[%clk 0:01:44.1]} 18. Nd4
{[%clk 0:02:23.5]} 18... Nxe5 {[%clk 0:01:32.1]} 19. f3 {[%clk 0:02:23.3]} 19...
exf3 {[%clk 0:01:25.5]} 20. Nxf3 {[%clk 0:02:09.1]} 20... Qb6 {[%clk 0:01:01.3]}
21. Nd4 {[%clk 0:02:04.2]} 21... Kg7 {[%clk 0:01:00.6]} 22. Kh1 {[%clk
0:02:03.8]} 22... Ng4 {[%clk 0:00:55.8]} 23. Qd2 {[%clk 0:02:00.1]} 23... Qd6
{[%clk 0:00:50]} 24. Nxe6+ {[%clk 0:01:31.8]} 24... fxe6 {[%clk 0:00:48.3]} 25.
Nxg4 {[%clk 0:01:31.3]} 25... hxg4 {[%clk 0:00:46.7]} 26. Qxg5+ {[%clk
0:01:31.9]} 26... Ng6 {[%clk 0:00:35.4]} 27. Qf6+ {[%clk 0:01:31.7]} 27... Kh6
{[%clk 0:00:31.1]} 28. Bc2 {[%clk 0:01:31.3]} 28... Rhg8 {[%clk 0:00:29.2]} 29.
Rf5 {[%clk 0:01:23.7]} 29... Qe7 {[%clk 0:00:21.8]} 30. Rh5+ {[%clk 0:01:23]}
30... Kxh5 {[%clk 0:00:17.1]} 31. Bxg6+ {[%clk 0:01:23.4]} 31... Rxg6 {[%clk
0:00:15.7]} 32. Qxe7 {[%clk 0:01:24.3]} 1-0

[Event "Late-Titled-Tuesday-Blitz-January-30-2024"]
[Site "Chess.com"]
[Date "2024.01.30"]
[Round "4"]
[White "DonJuanEGenaro"]
[Black "Fernando_Offermann"]
[Result "0-1"]
[WhiteElo "2011"]
[BlackElo "2443"]
[TimeControl "180+1"]
[EndTime "14:37:15 PST"]
[Termination "Fernando_Offermann won on time"]

1. Nf3 {[%clk 0:03:00.9]} 1... c5 {[%clk 0:02:59.5]} 2. c3 {[%clk 0:02:57.7]}
2... d5 {[%clk 0:02:58.6]} 3. d4 {[%clk 0:02:57.5]} 3... Qc7 {[%clk 0:02:59]} 4.
Na3 {[%clk 0:02:48.5]} 4... a6 {[%clk 0:02:57.7]} 5. g3 {[%clk 0:02:41.6]} 5...
e6 {[%clk 0:02:54.8]} 6. Bg2 {[%clk 0:02:41.3]} 6... Nf6 {[%clk 0:02:54.5]} 7.
O-O {[%clk 0:02:41]} 7... Be7 {[%clk 0:02:53.8]} 8. Nc2 {[%clk 0:02:39.6]} 8...
O-O {[%clk 0:02:53.6]} 9. Bf4 {[%clk 0:02:38.8]} 9... Qb6 {[%clk 0:02:51.6]} 10.
b3 {[%clk 0:02:14.4]} 10... Ne4 {[%clk 0:02:49.1]} 11. Bd2 {[%clk 0:02:07.4]}
11... Nd7 {[%clk 0:02:47.5]} 12. Nfe1 {[%clk 0:01:58.8]} 12... Ndf6 {[%clk
0:02:45.3]} 13. f3 {[%clk 0:01:57.6]} 13... Nxd2 {[%clk 0:02:44.5]} 14. Qxd2
{[%clk 0:01:57.6]} 14... Bd7 {[%clk 0:02:44.6]} 15. Nd3 {[%clk 0:01:52.8]} 15...
cxd4 {[%clk 0:02:42.3]} 16. cxd4 {[%clk 0:01:52.2]} 16... Rfc8 {[%clk
0:02:40.5]} 17. Ne5 {[%clk 0:01:47.4]} 17... Be8 {[%clk 0:02:37.7]} 18. Kh1
{[%clk 0:01:45.6]} 18... Rc7 {[%clk 0:02:35.6]} 19. Rfc1 {[%clk 0:01:34.7]}
19... Rac8 {[%clk 0:02:33.9]} 20. e3 {[%clk 0:01:28.3]} 20... a5 {[%clk
0:02:31.6]} 21. Ne1 {[%clk 0:01:15.3]} 21... Ba3 {[%clk 0:02:30.3]} 22. Rxc7
{[%clk 0:01:14.2]} 22... Qxc7 {[%clk 0:02:30.3]} 23. Qd3 {[%clk 0:01:00.5]}
23... h6 {[%clk 0:02:27.8]} 24. g4 {[%clk 0:00:51.4]} 24... Qb6 {[%clk
0:02:18.6]} 25. Rd1 {[%clk 0:00:49.7]} 25... Bb5 {[%clk 0:02:18.1]} 26. Qd2
{[%clk 0:00:45.7]} 26... Bb4 {[%clk 0:02:17]} 27. Qb2 {[%clk 0:00:44.8]} 27...
Qd6 {[%clk 0:02:16.2]} 28. a4 {[%clk 0:00:42.6]} 28... Ba6 {[%clk 0:02:10.3]}
29. N1d3 {[%clk 0:00:36.7]} 29... Bc3 {[%clk 0:02:09.6]} 30. Qc2 {[%clk
0:00:35]} 30... Rc7 {[%clk 0:02:08.4]} 31. Rc1 {[%clk 0:00:32.5]} 31... Ne8
{[%clk 0:02:07.9]} 32. Nc5 {[%clk 0:00:27.3]} 32... Bb4 {[%clk 0:02:04.7]} 33.
Qf2 {[%clk 0:00:08.1]} 33... Bxc5 {[%clk 0:02:02.8]} 34. dxc5 {[%clk 0:00:07.9]}
34... Qxe5 {[%clk 0:02:02.6]} 35. f4 {[%clk 0:00:07.1]} 35... Qf6 {[%clk
0:02:01.4]} 36. h4 {[%clk 0:00:05.2]} 36... Qe7 {[%clk 0:02:00.8]} 37. e4 {[%clk
0:00:03.8]} 37... dxe4 {[%clk 0:02:00.2]} 38. Bxe4 {[%clk 0:00:03]} 38... Nd6
{[%clk 0:01:56]} 39. Bd3 {[%clk 0:00:02.2]} 39... Bxd3 {[%clk 0:01:55]} 0-1

[Event "Late-Titled-Tuesday-Blitz-January-30-2024"]
[Site "Chess.com"]
[Date "2024.01.30"]
[Round "4"]
[White "Defend1r"]
[Black "RianKapriaga"]
[Result "1-0"]
[WhiteElo "2533"]
[BlackElo "2348"]
[TimeControl "180+1"]
[EndTime "14:37:19 PST"]
[Termination "Defend1r won on time"]

1. e4 {[%clk 0:03:00.9]} 1... c6 {[%clk 0:02:57.1]} 2. d4 {[%clk 0:03:00.4]}
2... d5 {[%clk 0:02:56.8]} 3. e5 {[%clk 0:03:00.6]} 3... Bf5 {[%clk 0:02:55.2]}
4. h4 {[%clk 0:03:00.5]} 4... h5 {[%clk 0:02:54]} 5. Bd3 {[%clk 0:03:00.3]} 5...
Bxd3 {[%clk 0:02:52.5]} 6. Qxd3 {[%clk 0:03:01.2]} 6... e6 {[%clk 0:02:52.9]} 7.
Bg5 {[%clk 0:03:01.6]} 7... Qa5+ {[%clk 0:02:53]} 8. Nd2 {[%clk 0:03:01.9]} 8...
Qa6 {[%clk 0:02:48.9]} 9. c4 {[%clk 0:03:02]} 9... Nd7 {[%clk 0:02:46.2]} 10. b3
{[%clk 0:02:58.9]} 10... Bb4 {[%clk 0:02:46.2]} 11. Nf3 {[%clk 0:02:58.7]} 11...
Bxd2+ {[%clk 0:02:46.6]} 12. Nxd2 {[%clk 0:02:57.7]} 12... Nh6 {[%clk
0:02:44.6]} 13. Bxh6 {[%clk 0:02:57.3]} 13... Rxh6 {[%clk 0:02:43.5]} 14. O-O
{[%clk 0:02:56.3]} 14... Rg6 {[%clk 0:02:27.9]} 15. a4 {[%clk 0:02:55.7]} 15...
Rd8 {[%clk 0:02:19.5]} 16. a5 {[%clk 0:02:55.6]} 16... dxc4 {[%clk 0:02:13.1]}
17. Nxc4 {[%clk 0:02:44.3]} 17... Kf8 {[%clk 0:01:52.9]} 18. Qf3 {[%clk
0:02:43.5]} 18... Rg4 {[%clk 0:01:48.3]} 19. g3 {[%clk 0:02:42.5]} 19... g6
{[%clk 0:01:41.4]} 20. Rfe1 {[%clk 0:02:39.4]} 20... Rxd4 {[%clk 0:01:34.6]} 21.
Rad1 {[%clk 0:02:26.9]} 21... Rd5 {[%clk 0:01:14.2]} 22. Qf4 {[%clk 0:02:04.1]}
22... Kg7 {[%clk 0:01:11.7]} 23. Nd6 {[%clk 0:02:01.6]} 23... Rf8 {[%clk
0:01:00.4]} 24. Rxd5 {[%clk 0:01:54.2]} 24... cxd5 {[%clk 0:00:58.3]} 25. Rc1
{[%clk 0:01:54.6]} 25... Qxa5 {[%clk 0:00:40]} 26. Nxb7 {[%clk 0:01:52.8]} 26...
Qb6 {[%clk 0:00:24.9]} 27. Nd6 {[%clk 0:01:53]} 27... Qxb3 {[%clk 0:00:23.7]}
28. Rc7 {[%clk 0:01:50]} 28... Qd1+ {[%clk 0:00:12.7]} 29. Kh2 {[%clk
0:01:49.7]} 29... Nxe5 {[%clk 0:00:07.4]} 30. Qxe5+ {[%clk 0:01:46.5]} 30... Kg8
{[%clk 0:00:06.7]} 31. Qf6 {[%clk 0:01:33]} 1-0

[Event "Late-Titled-Tuesday-Blitz-January-30-2024"]
[Site "Chess.com"]
[Date "2024.01.30"]
[Round "4"]
[White "santosalberto1987"]
[Black "The_Machine04"]
[Result "0-1"]
[WhiteElo "2529"]
[BlackElo "2719"]
[TimeControl "180+1"]
[EndTime "14:37:20 PST"]
[Termination "The_Machine04 won by resignation"]

1. e4 {[%clk 0:03:00.9]} 1... d6 {[%clk 0:03:00.1]} 2. d4 {[%clk 0:03:00.5]}
2... Nf6 {[%clk 0:03:00.3]} 3. Nc3 {[%clk 0:03:00.4]} 3... e5 {[%clk 0:03:00.9]}
4. Nf3 {[%clk 0:02:57.8]} 4... Nbd7 {[%clk 0:03:00.5]} 5. Bc4 {[%clk 0:02:57.5]}
5... Be7 {[%clk 0:03:00.8]} 6. O-O {[%clk 0:02:57.2]} 6... c6 {[%clk 0:03:01.1]}
7. a4 {[%clk 0:02:56.8]} 7... h6 {[%clk 0:03:01.7]} 8. h3 {[%clk 0:02:54.1]}
8... Qc7 {[%clk 0:03:01.9]} 9. Re1 {[%clk 0:02:49.6]} 9... Nf8 {[%clk
0:03:02.3]} 10. Be3 {[%clk 0:02:40.6]} 10... g5 {[%clk 0:03:02.3]} 11. Nd2
{[%clk 0:02:37]} 11... Ng6 {[%clk 0:03:00.2]} 12. Nf1 {[%clk 0:02:29.5]} 12...
g4 {[%clk 0:02:59.9]} 13. hxg4 {[%clk 0:02:27.1]} 13... Bxg4 {[%clk 0:02:59.9]}
14. f3 {[%clk 0:02:25.8]} 14... Be6 {[%clk 0:03:00.6]} 15. Bxe6 {[%clk 0:02:25]}
15... fxe6 {[%clk 0:03:01.5]} 16. dxe5 {[%clk 0:02:24.1]} 16... dxe5 {[%clk
0:03:02.4]} 17. a5 {[%clk 0:02:19.7]} 17... h5 {[%clk 0:03:02.2]} 18. Na4 {[%clk
0:02:14.3]} 18... h4 {[%clk 0:03:01.6]} 19. Nc5 {[%clk 0:02:10.9]} 19... Kf7
{[%clk 0:03:00.6]} 20. Qe2 {[%clk 0:02:07.6]} 20... Nh5 {[%clk 0:02:54]} 21. Qc4
{[%clk 0:01:53.7]} 21... Ngf4 {[%clk 0:02:52.9]} 22. Nh2 {[%clk 0:01:41.5]}
22... Rag8 {[%clk 0:02:41.3]} 23. Ng4 {[%clk 0:01:41.7]} 23... h3 {[%clk
0:02:38]} 24. g3 {[%clk 0:01:28.4]} 24... Nxg3 {[%clk 0:02:34.5]} 25. Bxf4
{[%clk 0:01:28.3]} 25... Bxc5+ {[%clk 0:02:27.8]} 26. Qxc5 {[%clk 0:01:25.7]}
26... exf4 {[%clk 0:02:27.4]} 27. Rad1 {[%clk 0:01:20.8]} 27... h2+ {[%clk
0:02:21.4]} 28. Kg2 {[%clk 0:01:10.1]} 28... h1=Q+ {[%clk 0:02:20.4]} 29. Rxh1
{[%clk 0:01:10.7]} 29... Nxh1 {[%clk 0:02:20.7]} 30. Rxh1 {[%clk 0:01:03.3]}
30... Rxh1 {[%clk 0:02:20.1]} 31. Kxh1 {[%clk 0:01:03.9]} 31... Qe7 {[%clk
0:01:35.3]} 32. Qh5+ {[%clk 0:00:50.7]} 32... Kf8 {[%clk 0:01:31.1]} 33. e5
{[%clk 0:00:41.9]} 33... Qg7 {[%clk 0:01:22.2]} 0-1

[Event "Late-Titled-Tuesday-Blitz-January-30-2024"]
[Site "Chess.com"]
[Date "2024.01.30"]
[Round "4"]
[White "GMthekingindian"]
[Black "ozates"]
[Result "0-1"]
[WhiteElo "2411"]
[BlackElo "2631"]
[TimeControl "180+1"]
[EndTime "14:37:21 PST"]
[Termination "ozates won by resignation"]

1. e4 {[%clk 0:03:00.9]} 1... g6 {[%clk 0:02:56]} 2. d4 {[%clk 0:03:00.5]} 2...
Bg7 {[%clk 0:02:55.7]} 3. Nc3 {[%clk 0:03:00.6]} 3... d6 {[%clk 0:02:56.1]} 4.
Nf3 {[%clk 0:03:00.1]} 4... a6 {[%clk 0:02:55.9]} 5. a4 {[%clk 0:02:59.7]} 5...
e6 {[%clk 0:02:56.1]} 6. Bd3 {[%clk 0:02:59.4]} 6... Ne7 {[%clk 0:02:56.6]} 7.
h4 {[%clk 0:02:59.4]} 7... h6 {[%clk 0:02:56.3]} 8. e5 {[%clk 0:02:55.1]} 8...
Nd7 {[%clk 0:02:54.3]} 9. Qe2 {[%clk 0:02:54.3]} 9... dxe5 {[%clk 0:02:48.2]}
10. Nxe5 {[%clk 0:02:52.1]} 10... O-O {[%clk 0:02:43.3]} 11. Bf4 {[%clk
0:02:41.9]} 11... Nxe5 {[%clk 0:02:36.4]} 12. Bxe5 {[%clk 0:02:34.2]} 12... Nc6
{[%clk 0:02:35.7]} 13. O-O-O {[%clk 0:02:17]} 13... Nxd4 {[%clk 0:02:32.2]} 14.
Bxd4 {[%clk 0:02:14.7]} 14... Qxd4 {[%clk 0:02:33.1]} 15. h5 {[%clk 0:02:10.9]}
15... Qf4+ {[%clk 0:02:31]} 16. Kb1 {[%clk 0:02:10.6]} 16... g5 {[%clk
0:02:29.4]} 17. g3 {[%clk 0:02:06.1]} 17... Qb4 {[%clk 0:02:27.3]} 18. Qe4
{[%clk 0:01:57.5]} 18... Qxe4 {[%clk 0:02:26.4]} 19. Nxe4 {[%clk 0:01:55]} 19...
b5 {[%clk 0:02:23.3]} 20. axb5 {[%clk 0:01:31.7]} 20... axb5 {[%clk 0:02:24.2]}
21. f4 {[%clk 0:01:30.7]} 21... g4 {[%clk 0:02:17.6]} 22. Nc5 {[%clk 0:01:18.8]}
22... Re8 {[%clk 0:01:37.9]} 23. Bxb5 {[%clk 0:01:13.4]} 23... Rf8 {[%clk
0:01:36.6]} 24. Nb3 {[%clk 0:00:42.2]} 24... Bb7 {[%clk 0:01:34.5]} 25. Rhe1
{[%clk 0:00:39.2]} 25... Bd5 {[%clk 0:01:34]} 26. c4 {[%clk 0:00:34.1]} 26...
Bf3 {[%clk 0:01:33.2]} 27. Rd2 {[%clk 0:00:28.5]} 27... c6 {[%clk 0:01:30]} 28.
Bxc6 {[%clk 0:00:10.3]} 28... Bxc6 {[%clk 0:01:29.7]} 29. Nd4 {[%clk 0:00:11.2]}
29... Rfd8 {[%clk 0:01:28.6]} 30. Red1 {[%clk 0:00:10.7]} 30... Be4+ {[%clk
0:01:27.4]} 31. Nc2 {[%clk 0:00:07.7]} 31... Rdb8 {[%clk 0:01:23.3]} 0-1

[Event "Late-Titled-Tuesday-Blitz-January-30-2024"]
[Site "Chess.com"]
[Date "2024.01.30"]
[Round "4"]
[White "Doudou2015"]
[Black "j_coca"]
[Result "0-1"]
[WhiteElo "2205"]
[BlackElo "2488"]
[TimeControl "180+1"]
[EndTime "14:37:22 PST"]
[Termination "j_coca won on time"]

1. b3 {[%clk 0:02:38.2]} 1... Nf6 {[%clk 0:02:50.3]} 2. Bb2 {[%clk 0:02:39.1]}
2... g6 {[%clk 0:02:49.2]} 3. Bxf6 {[%clk 0:02:36.8]} 3... exf6 {[%clk
0:02:49.2]} 4. c4 {[%clk 0:02:37.1]} 4... Bg7 {[%clk 0:02:49.1]} 5. Nc3 {[%clk
0:02:37.6]} 5... O-O {[%clk 0:02:49.5]} 6. g3 {[%clk 0:02:38]} 6... f5 {[%clk
0:02:49.7]} 7. Bg2 {[%clk 0:02:37.4]} 7... d6 {[%clk 0:02:48.1]} 8. e3 {[%clk
0:02:37.1]} 8... Nd7 {[%clk 0:02:48.3]} 9. Nge2 {[%clk 0:02:37]} 9... Ne5 {[%clk
0:02:47.1]} 10. d4 {[%clk 0:02:37]} 10... Ng4 {[%clk 0:02:46.5]} 11. O-O {[%clk
0:02:33.6]} 11... c6 {[%clk 0:02:44.1]} 12. Qc2 {[%clk 0:02:18.7]} 12... Qe7
{[%clk 0:02:42.9]} 13. Rad1 {[%clk 0:02:01.3]} 13... Bd7 {[%clk 0:02:40.4]} 14.
h3 {[%clk 0:02:00.6]} 14... Nf6 {[%clk 0:02:38.6]} 15. Nf4 {[%clk 0:01:50.8]}
15... Rae8 {[%clk 0:02:37.2]} 16. d5 {[%clk 0:01:47.9]} 16... c5 {[%clk
0:02:36.7]} 17. h4 {[%clk 0:01:44.7]} 17... Ng4 {[%clk 0:02:33.6]} 18. Rfe1
{[%clk 0:01:41.6]} 18... h6 {[%clk 0:02:33]} 19. a4 {[%clk 0:01:35.3]} 19... g5
{[%clk 0:02:30.3]} 20. hxg5 {[%clk 0:01:33.1]} 20... hxg5 {[%clk 0:02:31.2]} 21.
Nh5 {[%clk 0:01:32.4]} 21... Be5 {[%clk 0:02:30.6]} 22. Nb5 {[%clk 0:01:21.6]}
22... a6 {[%clk 0:02:22.5]} 23. f3 {[%clk 0:01:03]} 23... Nxe3 {[%clk
0:02:14.2]} 24. Rxe3 {[%clk 0:01:01.3]} 24... axb5 {[%clk 0:02:14.4]} 25. Kf1
{[%clk 0:00:36.2]} 25... Qd8 {[%clk 0:01:51.5]} 26. axb5 {[%clk 0:00:24]} 26...
f6 {[%clk 0:01:45.9]} 27. Bh3 {[%clk 0:00:18.3]} 27... Qc8 {[%clk 0:01:42.1]}
28. f4 {[%clk 0:00:14.2]} 28... Bd4 {[%clk 0:01:37.2]} 29. Rxe8 {[%clk
0:00:09.5]} 29... Qxe8 {[%clk 0:01:36.7]} 30. Rxd4 {[%clk 0:00:09.4]} 30... cxd4
{[%clk 0:01:31]} 31. Bxf5 {[%clk 0:00:10]} 31... Qxh5 {[%clk 0:01:30.3]} 32.
Bxd7 {[%clk 0:00:08.8]} 32... Qf3+ {[%clk 0:01:29.8]} 33. Kg1 {[%clk 0:00:05.2]}
33... Qxg3+ {[%clk 0:01:29.3]} 34. Kh1 {[%clk 0:00:03.6]} 34... Kg7 {[%clk
0:01:27.7]} 0-1

[Event "Late-Titled-Tuesday-Blitz-January-30-2024"]
[Site "Chess.com"]
[Date "2024.01.30"]
[Round "4"]
[White "ValeriyGrinev"]
[Black "js20000"]
[Result "1-0"]
[WhiteElo "2564"]
[BlackElo "2755"]
[TimeControl "180+1"]
[EndTime "14:37:26 PST"]
[Termination "ValeriyGrinev won by resignation"]

1. e4 {[%clk 0:03:00.9]} 1... c6 {[%clk 0:02:59.6]} 2. d4 {[%clk 0:03:00.4]}
2... d5 {[%clk 0:02:56.2]} 3. e5 {[%clk 0:03:01]} 3... Bf5 {[%clk 0:02:55.4]} 4.
Nf3 {[%clk 0:03:01.6]} 4... e6 {[%clk 0:02:55.9]} 5. Be2 {[%clk 0:03:01.8]} 5...
Bg4 {[%clk 0:02:56.4]} 6. O-O {[%clk 0:03:02.2]} 6... c5 {[%clk 0:02:56.2]} 7.
dxc5 {[%clk 0:02:55.3]} 7... Nc6 {[%clk 0:02:54.1]} 8. c4 {[%clk 0:02:51.9]}
8... dxc4 {[%clk 0:02:50.6]} 9. Qa4 {[%clk 0:02:45.7]} 9... Bxc5 {[%clk
0:02:24]} 10. Qxc4 {[%clk 0:02:42.5]} 10... Bxf3 {[%clk 0:02:23]} 11. Bxf3
{[%clk 0:02:40.9]} 11... Qd4 {[%clk 0:02:23]} 12. Qb5 {[%clk 0:02:18.7]} 12...
Ne7 {[%clk 0:02:20.3]} 13. Be3 {[%clk 0:02:13.8]} 13... Qxe5 {[%clk 0:01:46.9]}
14. Qxc5 {[%clk 0:02:02.3]} 14... Qxb2 {[%clk 0:01:45.6]} 15. Nc3 {[%clk
0:01:58]} 15... Qb6 {[%clk 0:01:23.6]} 16. Qxb6 {[%clk 0:01:36.5]} 16... axb6
{[%clk 0:01:24.5]} 17. Bxb6 {[%clk 0:01:36.4]} 17... O-O {[%clk 0:01:20.6]} 18.
a4 {[%clk 0:01:35]} 18... Rfc8 {[%clk 0:01:18.7]} 19. Nb5 {[%clk 0:01:34.8]}
19... Ra6 {[%clk 0:01:16.2]} 20. a5 {[%clk 0:01:32.5]} 20... Raa8 {[%clk
0:00:59.7]} 21. Rfd1 {[%clk 0:01:27.5]} 21... Kf8 {[%clk 0:00:55.8]} 22. g3
{[%clk 0:01:26]} 22... h6 {[%clk 0:00:52.8]} 23. h4 {[%clk 0:01:25.1]} 23... g6
{[%clk 0:00:52.9]} 24. Kg2 {[%clk 0:01:25.4]} 24... h5 {[%clk 0:00:33.4]} 25.
Nd6 {[%clk 0:01:18.7]} 25... Rcb8 {[%clk 0:00:29]} 26. Ne4 {[%clk 0:01:13.6]}
26... Nd5 {[%clk 0:00:27.6]} 27. Nc5 {[%clk 0:01:10.6]} 27... Ne5 {[%clk
0:00:19.8]} 28. Bxd5 {[%clk 0:01:06.6]} 28... exd5 {[%clk 0:00:19]} 29. f4
{[%clk 0:00:59.3]} 29... Nc4 {[%clk 0:00:19.1]} 30. Nd7+ {[%clk 0:00:58.6]} 1-0

[Event "Late-Titled-Tuesday-Blitz-January-30-2024"]
[Site "Chess.com"]
[Date "2024.01.30"]
[Round "4"]
[White "temus_galaktionov"]
[Black "Azerichess"]
[Result "1/2-1/2"]
[WhiteElo "2880"]
[BlackElo "3075"]
[TimeControl "180+1"]
[EndTime "14:37:28 PST"]
[Termination "Game drawn by repetition"]

1. d4 {[%clk 0:03:00.9]} 1... Nf6 {[%clk 0:02:57.9]} 2. Nf3 {[%clk 0:03:00.8]}
2... g6 {[%clk 0:02:55.9]} 3. c4 {[%clk 0:03:00.6]} 3... Bg7 {[%clk 0:02:55.9]}
4. Nc3 {[%clk 0:03:00.8]} 4... d5 {[%clk 0:02:56.3]} 5. cxd5 {[%clk 0:03:00.9]}
5... Nxd5 {[%clk 0:02:57.2]} 6. e4 {[%clk 0:03:01.7]} 6... Nxc3 {[%clk
0:02:57.6]} 7. bxc3 {[%clk 0:03:02.6]} 7... O-O {[%clk 0:02:58.2]} 8. Be3 {[%clk
0:03:03.2]} 8... c5 {[%clk 0:02:58.2]} 9. Qd2 {[%clk 0:03:03.3]} 9... Bg4 {[%clk
0:02:58.1]} 10. Be2 {[%clk 0:02:49.7]} 10... Qa5 {[%clk 0:02:57.6]} 11. Rc1
{[%clk 0:02:48.7]} 11... Nd7 {[%clk 0:02:49.8]} 12. h3 {[%clk 0:02:45.4]} 12...
Bxf3 {[%clk 0:02:49.6]} 13. Bxf3 {[%clk 0:02:42.9]} 13... Rfd8 {[%clk
0:02:49.1]} 14. d5 {[%clk 0:02:31.2]} 14... b5 {[%clk 0:02:38.9]} 15. O-O {[%clk
0:02:26.9]} 15... Rac8 {[%clk 0:02:37.5]} 16. Be2 {[%clk 0:02:23.4]} 16... Nb6
{[%clk 0:02:27.3]} 17. Bg5 {[%clk 0:02:19.5]} 17... Rd7 {[%clk 0:02:03.7]} 18.
Bg4 {[%clk 0:02:16.5]} 18... e6 {[%clk 0:02:03.9]} 19. Qe2 {[%clk 0:02:02.2]}
19... Re8 {[%clk 0:01:55]} 20. dxe6 {[%clk 0:02:01.4]} 20... fxe6 {[%clk
0:01:55.9]} 21. Rfd1 {[%clk 0:01:53.5]} 21... Rxd1+ {[%clk 0:01:54]} 22. Rxd1
{[%clk 0:01:47.5]} 22... Nc4 {[%clk 0:01:34]} 23. Bxe6+ {[%clk 0:00:35.6]} 23...
Rxe6 {[%clk 0:01:16.3]} 24. Rd8+ {[%clk 0:00:36.1]} 24... Kf7 {[%clk 0:01:16.4]}
25. Rd7+ {[%clk 0:00:34.4]} 25... Kg8 {[%clk 0:00:58.9]} 26. Rd8+ {[%clk
0:00:33]} 26... Kf7 {[%clk 0:00:59.1]} 27. Rd7+ {[%clk 0:00:32.7]} 27... Kg8
{[%clk 0:00:43.3]} 28. Rd8+ {[%clk 0:00:29.9]} 1/2-1/2

[Event "Late-Titled-Tuesday-Blitz-January-30-2024"]
[Site "Chess.com"]
[Date "2024.01.30"]
[Round "4"]
[White "FontVella8"]
[Black "chessisveryfun1264"]
[Result "1/2-1/2"]
[WhiteElo "2743"]
[BlackElo "2554"]
[TimeControl "180+1"]
[EndTime "14:37:29 PST"]
[Termination "Game drawn by repetition"]

1. Nf3 {[%clk 0:02:59.9]} 1... e6 {[%clk 0:03:00.9]} 2. b3 {[%clk 0:02:59.8]}
2... Nf6 {[%clk 0:03:00]} 3. Bb2 {[%clk 0:03:00.3]} 3... b6 {[%clk 0:03:00.7]}
4. g3 {[%clk 0:03:00.8]} 4... Bb7 {[%clk 0:03:01.1]} 5. Bg2 {[%clk 0:03:01.5]}
5... g6 {[%clk 0:03:01.7]} 6. O-O {[%clk 0:03:02.1]} 6... Bg7 {[%clk 0:03:02.3]}
7. c4 {[%clk 0:03:02.8]} 7... O-O {[%clk 0:03:02.9]} 8. Nc3 {[%clk 0:03:02.9]}
8... c5 {[%clk 0:03:01.7]} 9. Rc1 {[%clk 0:03:02.1]} 9... Nc6 {[%clk 0:03:01.4]}
10. e3 {[%clk 0:03:02.4]} 10... d5 {[%clk 0:03:00.8]} 11. cxd5 {[%clk
0:03:02.5]} 11... exd5 {[%clk 0:03:01.7]} 12. d4 {[%clk 0:02:58.3]} 12... Rc8
{[%clk 0:02:55.4]} 13. dxc5 {[%clk 0:02:51.9]} 13... bxc5 {[%clk 0:02:56.3]} 14.
Na4 {[%clk 0:02:52.4]} 14... c4 {[%clk 0:02:43.2]} 15. bxc4 {[%clk 0:02:43.1]}
15... dxc4 {[%clk 0:02:44.1]} 16. Nc5 {[%clk 0:02:41.1]} 16... Qb6 {[%clk
0:02:41.6]} 17. Bxf6 {[%clk 0:02:31.8]} 17... Qxc5 {[%clk 0:02:38.4]} 18. Bxg7
{[%clk 0:02:30.7]} 18... Kxg7 {[%clk 0:02:39.3]} 19. Qc2 {[%clk 0:02:05.6]}
19... Nb4 {[%clk 0:02:34.1]} 20. Qc3+ {[%clk 0:02:00.8]} 20... Kg8 {[%clk
0:02:34]} 21. Rb1 {[%clk 0:01:35.7]} 21... a5 {[%clk 0:02:04.4]} 22. a3 {[%clk
0:01:28.8]} 22... Nd5 {[%clk 0:02:04.1]} 23. Qd4 {[%clk 0:01:17]} 23... Ba6
{[%clk 0:02:03.4]} 24. Rfc1 {[%clk 0:01:14.7]} 24... c3 {[%clk 0:01:59.7]} 25.
Qh4 {[%clk 0:01:10.6]} 25... c2 {[%clk 0:01:54.2]} 26. Ra1 {[%clk 0:00:48]}
26... Nxe3 {[%clk 0:01:42.2]} 27. Ng5 {[%clk 0:00:35.7]} 27... h5 {[%clk
0:01:41.7]} 28. Ne4 {[%clk 0:00:34.8]} 28... Qb6 {[%clk 0:01:36.8]} 29. fxe3
{[%clk 0:00:29]} 29... Qxe3+ {[%clk 0:01:35.9]} 30. Kh1 {[%clk 0:00:29.6]} 30...
Rfd8 {[%clk 0:01:34.6]} 31. Rxc2 {[%clk 0:00:16.1]} 31... Rxc2 {[%clk
0:01:32.9]} 32. Qxd8+ {[%clk 0:00:15.8]} 32... Kh7 {[%clk 0:01:28.5]} 33. Nf6+
{[%clk 0:00:08.3]} 33... Kg7 {[%clk 0:01:25.1]} 34. Ne8+ {[%clk 0:00:07.8]}
34... Kh7 {[%clk 0:01:23.2]} 35. Nf6+ {[%clk 0:00:05.5]} 35... Kg7 {[%clk
0:01:23.2]} 36. Ne8+ {[%clk 0:00:04.5]} 36... Kh7 {[%clk 0:01:23.4]} 37. Nf6+
{[%clk 0:00:04.4]} 1/2-1/2